[Event "Titled Tuesday Blitz October 31 Early 2023"]
[White "Devaev, Alexander"]
[Black "Ginzburg, Yakov"]
[WhiteFideId "4169395"]
[BlackFideId "4157176"]
[WhiteElo "2464"]
[BlackElo "2610"]
[Result "1-0"]
[Round "9"]
[TimeControl "180+1"]
[Date "2023.10.31"]
[WhiteClock "0:00:30"]
[BlackClock "0:00:00"]
[Board "65"]

1. Nf3 {[%clk 0:02:56]}  Nf6 {[%clk 0:02:59]} 2. c4 {[%clk 0:02:55]}  c6 {[%clk 0:02:58]} 3. e3 {[%clk 0:02:49]}  d5 {[%clk 0:02:58]} 4. b3 {[%clk 0:02:49]}  Bf5 {[%clk 0:02:57]} 5. Bb2 {[%clk 0:02:50]}  e6 {[%clk 0:02:57]} 6. Be2 {[%clk 0:02:50]}  h6 {[%clk 0:02:58]} 7. O-O {[%clk 0:02:47]}  Nbd7 {[%clk 0:02:58]} 8. Nd4 {[%clk 0:02:47]}  Bh7 {[%clk 0:02:54]} 9. f4 {[%clk 0:02:17]}  Bd6 {[%clk 0:02:53]} 10. Nc3 {[%clk 0:02:13]}  O-O {[%clk 0:02:52]} 11. Nf3 {[%clk 0:02:12]}  Re8 {[%clk 0:02:37]} 12. Kh1 {[%clk 0:01:55]}  e5 {[%clk 0:02:36]} 13. fxe5 {[%clk 0:01:51]}  Nxe5 {[%clk 0:02:36]} 14. cxd5 {[%clk 0:01:51]}  cxd5 {[%clk 0:02:26]} 15. Nb5 {[%clk 0:01:45]}  Nxf3 {[%clk 0:02:14]} 16. Nxd6 {[%clk 0:01:30]}  Qxd6 {[%clk 0:02:07]} 17. gxf3 {[%clk 0:01:26]}  Rac8 {[%clk 0:01:37]} 18. Rg1 {[%clk 0:01:26]}  Bg6 {[%clk 0:01:33]} 19. Qe1 {[%clk 0:01:09]}  Ne4 {[%clk 0:01:04]} 20. Rxg6 {[%clk 0:00:54]}  Qxg6 {[%clk 0:01:01]} 21. fxe4 {[%clk 0:00:55]}  Qxe4+ {[%clk 0:00:51]} 22. Kg1 {[%clk 0:00:54]}  Re6 {[%clk 0:00:49]} 23. Bh5 {[%clk 0:00:54]}  Rcc6 {[%clk 0:00:30]} 24. Qf2 {[%clk 0:00:40]}  Rg6+ {[%clk 0:00:17]} 25. Bxg6 {[%clk 0:00:39]}  Rxg6+ {[%clk 0:00:18]} 26. Kf1 {[%clk 0:00:40]}  Qh1+ {[%clk 0:00:18]} 27. Ke2 {[%clk 0:00:40]}  Qe4 {[%clk 0:00:12]} 28. Rg1 {[%clk 0:00:41]}  a5 {[%clk 0:00:06]} 29. Bd4 {[%clk 0:00:39]}  Kh8 {[%clk 0:00:05]} 30. Rxg6 {[%clk 0:00:40]}  Qxg6 {[%clk 0:00:05]} 31. Qg3 {[%clk 0:00:37]}  Qh5+ {[%clk 0:00:03]} 32. Ke1 {[%clk 0:00:36]}  f6 {[%clk 0:00:03]} 33. h4 {[%clk 0:00:35]}  Qf5 {[%clk 0:00:02]} 34. Ke2 {[%clk 0:00:35]}  b5 {[%clk 0:00:01]} 35. a3 {[%clk 0:00:34]}  a4 {[%clk 0:00:02]} 36. bxa4 {[%clk 0:00:34]}  bxa4 {[%clk 0:00:02]} 37. Qf4 {[%clk 0:00:34]}  Qc2 {[%clk 0:00:02]} 38. Bc3 {[%clk 0:00:34]}  Qg6 {[%clk 0:00:02]} 39. Qxa4 {[%clk 0:00:31]}  Qh5+ {[%clk 0:00:01]} 40. Kd3 {[%clk 0:00:29]}  Qf5+ {[%clk 0:00:01]} 41. Ke2 {[%clk 0:00:29]}  Qh5+ {[%clk 0:00:01]} 42. Ke1 {[%clk 0:00:30]}  Qf3 {[%clk 0:00:01]} 43. Qf4 {[%clk 0:00:29]}  Qh1+ {[%clk 0:00:02]} 44. Ke2 {[%clk 0:00:29]}  Qg2+ {[%clk 0:00:02]} 45. Kd3 {[%clk 0:00:30]}  Qg6+ {[%clk 0:00:00]} 46. Kd4 {[%clk 0:00:30]} 1-0


[Site "https://www.chess.com"]

[Event "Titled Tuesday Blitz October 31 Early 2023"]
[White "Ahmad, Khagan"]
[Black "Buchenau, Frank"]
[WhiteFideId "13431552"]
[BlackFideId "4604350"]
[WhiteElo "2609"]
[BlackElo "2471"]
[Result "1-0"]
[Round "9"]
[TimeControl "180+1"]
[Date "2023.10.31"]
[WhiteClock "0:00:07"]
[BlackClock "0:00:30"]
[Board "66"]

1. e4 {[%clk 0:02:31]}  e6 {[%clk 0:03:00]} 2. d4 {[%clk 0:02:29]}  d5 {[%clk 0:03:00]} 3. Nd2 {[%clk 0:02:30]}  c5 {[%clk 0:02:59]} 4. Ngf3 {[%clk 0:02:29]}  cxd4 {[%clk 0:02:59]} 5. Nxd4 {[%clk 0:02:30]}  Nc6 {[%clk 0:02:59]} 6. Bb5 {[%clk 0:02:27]}  Bd7 {[%clk 0:02:59]} 7. Nxc6 {[%clk 0:02:27]}  bxc6 {[%clk 0:02:59]} 8. Bd3 {[%clk 0:02:27]}  Bd6 {[%clk 0:02:58]} 9. Qe2 {[%clk 0:02:21]}  Ne7 {[%clk 0:02:58]} 10. c4 {[%clk 0:02:18]}  O-O {[%clk 0:02:40]} 11. O-O {[%clk 0:02:02]}  Ng6 {[%clk 0:02:29]} 12. Nf3 {[%clk 0:01:33]}  Nf4 {[%clk 0:02:25]} 13. Bxf4 {[%clk 0:01:31]}  Bxf4 {[%clk 0:02:26]} 14. cxd5 {[%clk 0:01:29]}  cxd5 {[%clk 0:02:23]} 15. exd5 {[%clk 0:01:29]}  exd5 {[%clk 0:02:23]} 16. Rad1 {[%clk 0:00:57]}  Re8 {[%clk 0:02:05]} 17. Qc2 {[%clk 0:00:52]}  Rc8 {[%clk 0:01:49]} 18. Bxh7+ {[%clk 0:00:37]}  Kh8 {[%clk 0:01:49]} 19. Qd3 {[%clk 0:00:38]}  Qf6 {[%clk 0:01:40]} 20. Qxd5 {[%clk 0:00:30]}  Bc6 {[%clk 0:00:57]} 21. Qh5 {[%clk 0:00:26]}  Bh6 {[%clk 0:00:57]} 22. Bf5 {[%clk 0:00:20]}  Qxb2 {[%clk 0:00:51]} 23. Bxc8 {[%clk 0:00:16]}  Rxc8 {[%clk 0:00:48]} 24. Ne5 {[%clk 0:00:15]}  Be8 {[%clk 0:00:46]} 25. Nxf7+ {[%clk 0:00:15]}  Kh7 {[%clk 0:00:45]} 26. Rd6 {[%clk 0:00:10]}  Rc1 {[%clk 0:00:37]} 27. Rxh6+ {[%clk 0:00:05]}  gxh6 {[%clk 0:00:35]} 28. Qxh6+ {[%clk 0:00:06]}  Kg8 {[%clk 0:00:30]} 29. Qxc1 {[%clk 0:00:07]} 1-0


[Site "https://www.chess.com"]

[Event "Titled Tuesday Blitz October 31 Early 2023"]
[White "Pinto, Daniel"]
[Black "FoxOnTheRun97"]
[WhiteFideId "3303144"]
[WhiteElo "2455"]
[BlackElo "2602"]
[Result "0-1"]
[Round "9"]
[TimeControl "180+1"]
[Date "2023.10.31"]
[WhiteClock "0:00:00"]
[BlackClock "0:00:07"]
[Board "67"]

1. e4 {[%clk 0:02:50]}  c6 {[%clk 0:02:59]} 2. Nf3 {[%clk 0:02:49]}  d5 {[%clk 0:02:59]} 3. Nc3 {[%clk 0:02:49]}  Nf6 {[%clk 0:02:58]} 4. e5 {[%clk 0:01:31]}  Ng8 {[%clk 0:02:55]} 5. d4 {[%clk 0:01:29]}  Bg4 {[%clk 0:02:53]} 6. h3 {[%clk 0:01:28]}  Bxf3 {[%clk 0:02:49]} 7. Qxf3 {[%clk 0:01:29]}  e6 {[%clk 0:02:49]} 8. Bd3 {[%clk 0:01:13]}  c5 {[%clk 0:02:46]} 9. dxc5 {[%clk 0:01:10]}  Bxc5 {[%clk 0:02:43]} 10. O-O {[%clk 0:00:50]}  Nc6 {[%clk 0:02:37]} 11. Qg3 {[%clk 0:00:49]}  Nge7 {[%clk 0:02:28]} 12. a3 {[%clk 0:00:41]}  Bd4 {[%clk 0:02:15]} 13. Re1 {[%clk 0:00:31]}  Ng6 {[%clk 0:02:10]} 14. Bxg6 {[%clk 0:00:14]}  hxg6 {[%clk 0:02:11]} 15. Nb5 {[%clk 0:00:14]}  Rh5 {[%clk 0:01:24]} 16. Nxd4 {[%clk 0:00:05]}  Nxd4 {[%clk 0:01:25]} 17. Qd3 {[%clk 0:00:05]}  Nc6 {[%clk 0:01:07]} 18. f4 {[%clk 0:00:05]}  Rc8 {[%clk 0:01:01]} 19. Be3 {[%clk 0:00:04]}  Kf8 {[%clk 0:00:59]} 20. Bc5+ {[%clk 0:00:04]}  Kg8 {[%clk 0:00:59]} 21. Bf2 {[%clk 0:00:02]}  a6 {[%clk 0:00:54]} 22. b3 {[%clk 0:00:03]}  Qc7 {[%clk 0:00:46]} 23. Re2 {[%clk 0:00:03]}  g5 {[%clk 0:00:40]} 24. f5 {[%clk 0:00:02]}  Nxe5 {[%clk 0:00:33]} 25. Qg3 {[%clk 0:00:02]}  f6 {[%clk 0:00:23]} 26. fxe6 {[%clk 0:00:02]}  Rh4 {[%clk 0:00:24]} 27. Rd1 {[%clk 0:00:02]}  Re4 {[%clk 0:00:23]} 28. Rxe4 {[%clk 0:00:02]}  dxe4 {[%clk 0:00:24]} 29. c4 {[%clk 0:00:02]}  Re8 {[%clk 0:00:23]} 30. Bd4 {[%clk 0:00:02]}  Rxe6 {[%clk 0:00:22]} 31. Bxe5 {[%clk 0:00:02]}  Rxe5 {[%clk 0:00:20]} 32. Qg4 {[%clk 0:00:03]}  Re7 {[%clk 0:00:17]} 33. Qf5 {[%clk 0:00:02]}  e3 {[%clk 0:00:16]} 34. Qd5+ {[%clk 0:00:03]}  Kh7 {[%clk 0:00:14]} 35. Qf5+ {[%clk 0:00:03]}  Kh6 {[%clk 0:00:12]} 36. Re1 {[%clk 0:00:01]}  e2 {[%clk 0:00:11]} 37. h4 {[%clk 0:00:02]}  Qg3 {[%clk 0:00:08]} 38. Qf2 {[%clk 0:00:00]}  gxh4 {[%clk 0:00:07]} 0-1


[Site "https://www.chess.com"]

[Event "Titled Tuesday Blitz October 31 Early 2023"]
[White "Liu, Casper"]
[Black "Bulmaga, Irina"]
[WhiteFideId "1454153"]
[BlackFideId "13903063"]
[WhiteElo "2448"]
[BlackElo "2583"]
[Result "1-0"]
[Round "9"]
[TimeControl "180+1"]
[Date "2023.10.31"]
[WhiteClock "0:00:07"]
[BlackClock "0:00:00"]
[Board "69"]

1. e4 {[%clk 0:02:47]}  c5 {[%clk 0:02:59]} 2. Nc3 {[%clk 0:02:45]}  Nc6 {[%clk 0:02:58]} 3. g3 {[%clk 0:02:39]}  g6 {[%clk 0:02:58]} 4. Bg2 {[%clk 0:02:39]}  Bg7 {[%clk 0:02:59]} 5. d3 {[%clk 0:02:39]}  e6 {[%clk 0:02:58]} 6. f4 {[%clk 0:02:39]}  Nge7 {[%clk 0:02:56]} 7. Nf3 {[%clk 0:02:39]}  d5 {[%clk 0:02:54]} 8. e5 {[%clk 0:02:39]}  h5 {[%clk 0:02:53]} 9. O-O {[%clk 0:02:36]}  Rb8 {[%clk 0:02:54]} 10. a4 {[%clk 0:02:35]}  a6 {[%clk 0:02:53]} 11. Ng5 {[%clk 0:02:30]}  Nf5 {[%clk 0:02:52]} 12. Qf3 {[%clk 0:02:05]}  Bh6 {[%clk 0:02:36]} 13. h3 {[%clk 0:01:48]}  O-O {[%clk 0:02:04]} 14. g4 {[%clk 0:01:38]}  Nh4 {[%clk 0:02:01]} 15. Qg3 {[%clk 0:01:36]}  Nxg2 {[%clk 0:02:00]} 16. gxh5 {[%clk 0:01:33]}  Bxg5 {[%clk 0:01:58]} 17. fxg5 {[%clk 0:01:26]}  Ne3 {[%clk 0:01:53]} 18. Bxe3 {[%clk 0:01:21]}  Qc7 {[%clk 0:01:51]} 19. Bf4 {[%clk 0:00:30]}  Bd7 {[%clk 0:01:46]} 20. Nxd5 {[%clk 0:00:26]}  exd5 {[%clk 0:01:44]} 21. e6 {[%clk 0:00:27]}  Qb6 {[%clk 0:01:43]} 22. Bc7 {[%clk 0:00:21]}  Qxb2 {[%clk 0:01:39]} 23. Bxb8 {[%clk 0:00:18]}  Bxe6 {[%clk 0:01:35]} 24. Bd6 {[%clk 0:00:19]}  Re8 {[%clk 0:01:29]} 25. hxg6 {[%clk 0:00:18]}  Nd4 {[%clk 0:01:15]} 26. Rae1 {[%clk 0:00:12]}  fxg6 {[%clk 0:01:02]} 27. Be5 {[%clk 0:00:11]}  Bf5 {[%clk 0:00:48]} 28. Bxd4 {[%clk 0:00:11]}  Qxd4+ {[%clk 0:00:48]} 29. Qf2 {[%clk 0:00:10]}  Rxe1 {[%clk 0:00:45]} 30. Rxe1 {[%clk 0:00:11]}  Qxa4 {[%clk 0:00:42]} 31. Qxc5 {[%clk 0:00:11]}  Bxh3 {[%clk 0:00:27]} 32. Qxd5+ {[%clk 0:00:10]}  Kf8 {[%clk 0:00:26]} 33. Qe5 {[%clk 0:00:09]}  Qg4+ {[%clk 0:00:23]} 34. Kf2 {[%clk 0:00:09]}  Qg2+ {[%clk 0:00:14]} 35. Ke3 {[%clk 0:00:09]}  Bf5 {[%clk 0:00:14]} 36. Kd4 {[%clk 0:00:09]}  Qf2+ {[%clk 0:00:11]} 37. Kc3 {[%clk 0:00:09]}  Qb6 {[%clk 0:00:00]} 38. Kd2 {[%clk 0:00:07]} 1-0


[Site "https://www.chess.com"]

[Event "Titled Tuesday Blitz October 31 Early 2023"]
[White "crazy_m_attack"]
[Black "Ergali_Suleimen"]
[WhiteElo "2429"]
[BlackElo "2571"]
[Result "1/2-1/2"]
[Round "9"]
[TimeControl "180+1"]
[Date "2023.10.31"]
[WhiteClock "0:00:04"]
[BlackClock "0:00:11"]
[Board "72"]

1. e4 {[%clk 0:03:00]}  c5 {[%clk 0:02:59]} 2. Nf3 {[%clk 0:03:01]}  Nc6 {[%clk 0:02:59]} 3. d4 {[%clk 0:03:01]}  cxd4 {[%clk 0:02:59]} 4. Nxd4 {[%clk 0:03:02]}  e6 {[%clk 0:03:00]} 5. Nc3 {[%clk 0:03:01]}  Qc7 {[%clk 0:03:00]} 6. Be3 {[%clk 0:02:58]}  a6 {[%clk 0:02:59]} 7. Be2 {[%clk 0:02:58]}  Nf6 {[%clk 0:02:59]} 8. O-O {[%clk 0:02:58]}  Be7 {[%clk 0:02:59]} 9. f4 {[%clk 0:02:57]}  d6 {[%clk 0:02:59]} 10. Qe1 {[%clk 0:02:56]}  O-O {[%clk 0:02:56]} 11. Rd1 {[%clk 0:02:53]}  Nxd4 {[%clk 0:02:52]} 12. Bxd4 {[%clk 0:02:53]}  e5 {[%clk 0:02:53]} 13. Be3 {[%clk 0:02:51]}  exf4 {[%clk 0:02:50]} 14. Bxf4 {[%clk 0:02:52]}  Qb6+ {[%clk 0:02:47]} 15. Kh1 {[%clk 0:02:49]}  Qxb2 {[%clk 0:02:47]} 16. Bxd6 {[%clk 0:02:28]}  Bxd6 {[%clk 0:02:42]} 17. Rxd6 {[%clk 0:02:29]}  Be6 {[%clk 0:02:33]} 18. e5 {[%clk 0:02:08]}  Nd7 {[%clk 0:02:29]} 19. Bd3 {[%clk 0:01:56]}  Rac8 {[%clk 0:02:23]} 20. Nd5 {[%clk 0:01:49]}  Bxd5 {[%clk 0:02:07]} 21. Rxd5 {[%clk 0:01:50]}  Nc5 {[%clk 0:02:06]} 22. Bf5 {[%clk 0:01:48]}  Ne6 {[%clk 0:02:05]} 23. Rd7 {[%clk 0:01:39]}  Qb5 {[%clk 0:01:55]} 24. Re7 {[%clk 0:01:17]}  Rce8 {[%clk 0:01:41]} 25. Bd3 {[%clk 0:01:06]}  Qc6 {[%clk 0:01:26]} 26. Qh4 {[%clk 0:00:55]}  h6 {[%clk 0:01:09]} 27. Be4 {[%clk 0:00:27]}  Qb5 {[%clk 0:01:02]} 28. c4 {[%clk 0:00:17]}  Qxe5 {[%clk 0:00:59]} 29. Bd5 {[%clk 0:00:12]}  Qg5 {[%clk 0:00:41]} 30. Qxg5 {[%clk 0:00:10]}  Nxg5 {[%clk 0:00:42]} 31. Rxb7 {[%clk 0:00:09]}  Re2 {[%clk 0:00:33]} 32. h4 {[%clk 0:00:08]}  Ne6 {[%clk 0:00:31]} 33. a4 {[%clk 0:00:04]}  Ra2 {[%clk 0:00:22]} 34. Rfxf7 {[%clk 0:00:02]}  Rxf7 {[%clk 0:00:11]} 35. Bxe6 {[%clk 0:00:02]}  Rf2 {[%clk 0:00:12]} 36. Bxf7+ {[%clk 0:00:02]}  Rxf7 {[%clk 0:00:13]} 37. Rb8+ {[%clk 0:00:02]}  Kh7 {[%clk 0:00:13]} 38. Ra8 {[%clk 0:00:03]}  Rf6 {[%clk 0:00:13]} 39. Rc8 {[%clk 0:00:03]}  Rf4 {[%clk 0:00:13]} 40. g3 {[%clk 0:00:02]}  Rf3 {[%clk 0:00:13]} 41. Kg2 {[%clk 0:00:02]}  Ra3 {[%clk 0:00:14]} 42. c5 {[%clk 0:00:03]}  Rxa4 {[%clk 0:00:15]} 43. c6 {[%clk 0:00:04]}  Rc4 {[%clk 0:00:15]} 44. c7 {[%clk 0:00:03]}  a5 {[%clk 0:00:15]} 45. Ra8 {[%clk 0:00:04]}  Rxc7 {[%clk 0:00:16]} 46. Rxa5 {[%clk 0:00:05]}  Rc3 {[%clk 0:00:17]} 47. Kh3 {[%clk 0:00:05]}  Kg6 {[%clk 0:00:17]} 48. Ra6+ {[%clk 0:00:06]}  Kf7 {[%clk 0:00:18]} 49. Ra7+ {[%clk 0:00:06]}  Kf6 {[%clk 0:00:19]} 50. Ra6+ {[%clk 0:00:06]}  Kf5 {[%clk 0:00:19]} 51. Ra5+ {[%clk 0:00:07]}  Kg6 {[%clk 0:00:19]} 52. Ra6+ {[%clk 0:00:07]}  Kh7 {[%clk 0:00:20]} 53. Ra7 {[%clk 0:00:07]}  Rc4 {[%clk 0:00:20]} 54. Rb7 {[%clk 0:00:07]}  Rd4 {[%clk 0:00:20]} 55. Ra7 {[%clk 0:00:07]}  Kg6 {[%clk 0:00:20]} 56. Ra6+ {[%clk 0:00:07]}  Kh7 {[%clk 0:00:20]} 57. Ra7 {[%clk 0:00:07]}  Re4 {[%clk 0:00:21]} 58. Kg2 {[%clk 0:00:05]}  Kg6 {[%clk 0:00:21]} 59. Kf3 {[%clk 0:00:06]}  Re6 {[%clk 0:00:22]} 60. Rb7 {[%clk 0:00:06]}  Rf6+ {[%clk 0:00:22]} 61. Kg4 {[%clk 0:00:05]}  Ra6 {[%clk 0:00:22]} 62. Kh3 {[%clk 0:00:04]}  Kf6 {[%clk 0:00:22]} 63. Rc7 {[%clk 0:00:04]}  h5 {[%clk 0:00:22]} 64. Rb7 {[%clk 0:00:04]}  g6 {[%clk 0:00:22]} 65. Rc7 {[%clk 0:00:04]}  Kf5 {[%clk 0:00:23]} 66. Rc5+ {[%clk 0:00:04]}  Ke4 {[%clk 0:00:23]} 67. Rc4+ {[%clk 0:00:05]}  Kf3 {[%clk 0:00:23]} 68. Rc3+ {[%clk 0:00:05]}  Kf2 {[%clk 0:00:23]} 69. Rc2+ {[%clk 0:00:05]}  Ke3 {[%clk 0:00:23]} 70. Rc3+ {[%clk 0:00:05]}  Kd2 {[%clk 0:00:24]} 71. Rf3 {[%clk 0:00:05]}  Ke2 {[%clk 0:00:24]} 72. Rf8 {[%clk 0:00:05]}  Re6 {[%clk 0:00:24]} 73. Rf7 {[%clk 0:00:06]}  Ke1 {[%clk 0:00:21]} 74. Rf8 {[%clk 0:00:06]}  Kd2 {[%clk 0:00:18]} 75. Rf7 {[%clk 0:00:06]}  Kd3 {[%clk 0:00:18]} 76. Rf8 {[%clk 0:00:06]}  Ke4 {[%clk 0:00:18]} 77. Rf7 {[%clk 0:00:07]}  Re5 {[%clk 0:00:18]} 78. Rf6 {[%clk 0:00:07]}  g5 {[%clk 0:00:18]} 79. hxg5 {[%clk 0:00:05]}  Rxg5 {[%clk 0:00:18]} 80. Kh4 {[%clk 0:00:05]}  Rg4+ {[%clk 0:00:16]} 81. Kxh5 {[%clk 0:00:05]}  Rxg3 {[%clk 0:00:17]} 82. Kh6 {[%clk 0:00:04]}  Ke5 {[%clk 0:00:17]} 83. Rf8 {[%clk 0:00:05]}  Ke6 {[%clk 0:00:11]} 84. Rf1 {[%clk 0:00:04]} 1/2-1/2


[Site "https://www.chess.com"]

[Event "Titled Tuesday Blitz October 31 Early 2023"]
[White "Andreev, Konstantin"]
[Black "Kostiukov, Alexandr"]
[WhiteFideId "24239305"]
[BlackFideId "14108100"]
[WhiteElo "2557"]
[BlackElo "2421"]
[Result "1-0"]
[Round "9"]
[TimeControl "180+1"]
[Date "2023.10.31"]
[WhiteClock "0:00:40"]
[BlackClock "0:00:00"]
[Board "73"]

1. e4 {[%clk 0:02:56]}  c6 {[%clk 0:02:59]} 2. d4 {[%clk 0:02:53]}  d5 {[%clk 0:02:59]} 3. e5 {[%clk 0:02:53]}  Bf5 {[%clk 0:02:57]} 4. Nf3 {[%clk 0:02:51]}  e6 {[%clk 0:02:56]} 5. Be2 {[%clk 0:02:50]}  c5 {[%clk 0:02:56]} 6. Be3 {[%clk 0:02:45]}  Nd7 {[%clk 0:02:40]} 7. O-O {[%clk 0:02:42]}  Ne7 {[%clk 0:02:40]} 8. c4 {[%clk 0:02:32]}  dxc4 {[%clk 0:02:15]} 9. Nbd2 {[%clk 0:02:25]}  Nd5 {[%clk 0:02:10]} 10. Bg5 {[%clk 0:02:22]}  Qc7 {[%clk 0:01:49]} 11. Nxc4 {[%clk 0:02:19]}  h6 {[%clk 0:01:46]} 12. Bh4 {[%clk 0:02:17]}  g5 {[%clk 0:01:44]} 13. Bg3 {[%clk 0:02:15]}  Be7 {[%clk 0:01:44]} 14. Rc1 {[%clk 0:01:51]}  O-O {[%clk 0:01:31]} 15. dxc5 {[%clk 0:01:26]}  Qxc5 {[%clk 0:00:43]} 16. Nd6 {[%clk 0:00:59]}  Bxd6 {[%clk 0:00:33]} 17. Rxc5 {[%clk 0:00:55]}  Bxc5 {[%clk 0:00:33]} 18. Bd3 {[%clk 0:00:46]}  Bxd3 {[%clk 0:00:21]} 19. Qxd3 {[%clk 0:00:47]}  Be7 {[%clk 0:00:17]} 20. Nd4 {[%clk 0:00:44]}  Nc5 {[%clk 0:00:09]} 21. Qf3 {[%clk 0:00:44]}  Kg7 {[%clk 0:00:08]} 22. Re1 {[%clk 0:00:42]}  Rad8 {[%clk 0:00:06]} 23. h3 {[%clk 0:00:41]}  a6 {[%clk 0:00:00]} 24. a3 {[%clk 0:00:40]} 1-0


[Site "https://www.chess.com"]

[Event "Titled Tuesday Blitz October 31 Early 2023"]
[White "Alinasab, Mobina"]
[Black "secrethawk1"]
[WhiteFideId "12528897"]
[WhiteElo "2528"]
[BlackElo "2381"]
[Result "1-0"]
[Round "9"]
[TimeControl "180+1"]
[Date "2023.10.31"]
[WhiteClock "0:00:19"]
[BlackClock "0:00:00"]
[Board "78"]

1. e4 {[%clk 0:02:08]}  c6 {[%clk 0:02:57]} 2. d4 {[%clk 0:02:06]}  d5 {[%clk 0:02:58]} 3. e5 {[%clk 0:02:06]}  Bf5 {[%clk 0:02:57]} 4. h4 {[%clk 0:02:03]}  h5 {[%clk 0:02:56]} 5. Bd3 {[%clk 0:01:59]}  Bxd3 {[%clk 0:02:56]} 6. Qxd3 {[%clk 0:02:00]}  e6 {[%clk 0:02:56]} 7. Nf3 {[%clk 0:01:58]}  c5 {[%clk 0:02:46]} 8. dxc5 {[%clk 0:01:14]}  Bxc5 {[%clk 0:02:44]} 9. Qb5+ {[%clk 0:01:13]}  Nd7 {[%clk 0:02:44]} 10. Bg5 {[%clk 0:01:11]}  Qc7 {[%clk 0:02:43]} 11. c3 {[%clk 0:01:08]}  a6 {[%clk 0:02:38]} 12. Qe2 {[%clk 0:01:06]}  Ne7 {[%clk 0:02:36]} 13. Bxe7 {[%clk 0:01:06]}  Bxe7 {[%clk 0:02:35]} 14. Nbd2 {[%clk 0:01:06]}  Qb6 {[%clk 0:02:31]} 15. Nb3 {[%clk 0:01:06]}  a5 {[%clk 0:02:31]} 16. Nbd4 {[%clk 0:01:06]}  O-O {[%clk 0:02:29]} 17. Ng5 {[%clk 0:01:03]}  g6 {[%clk 0:02:29]} 18. f4 {[%clk 0:00:52]}  Kg7 {[%clk 0:02:09]} 19. g4 {[%clk 0:00:46]}  hxg4 {[%clk 0:02:05]} 20. Qxg4 {[%clk 0:00:46]}  Rh8 {[%clk 0:02:05]} 21. h5 {[%clk 0:00:41]}  Rh6 {[%clk 0:02:04]} 22. Nxf7 {[%clk 0:00:32]}  Qxb2 {[%clk 0:01:33]} 23. Rd1 {[%clk 0:00:27]}  Qxc3+ {[%clk 0:01:24]} 24. Ke2 {[%clk 0:00:27]}  Qc4+ {[%clk 0:01:07]} 25. Ke3 {[%clk 0:00:27]}  Kxf7 {[%clk 0:00:38]} 26. hxg6+ {[%clk 0:00:27]}  Ke8 {[%clk 0:00:07]} 27. Rxh6 {[%clk 0:00:27]}  Qc3+ {[%clk 0:00:07]} 28. Kf2 {[%clk 0:00:25]}  Nxe5 {[%clk 0:00:01]} 29. fxe5 {[%clk 0:00:24]}  Kd8 {[%clk 0:00:01]} 30. Nxe6+ {[%clk 0:00:24]}  Kd7 {[%clk 0:00:01]} 31. Nd4+ {[%clk 0:00:21]}  Kc7 {[%clk 0:00:00]} 32. Rh7 {[%clk 0:00:19]} 1-0


[Site "https://www.chess.com"]

[Event "Titled Tuesday Blitz October 31 Early 2023"]
[White "Matthes, Aaron"]
[Black "Tologon tegin, Semetei"]
[WhiteFideId "16227310"]
[BlackFideId "13800574"]
[WhiteElo "2334"]
[BlackElo "2524"]
[Result "1-0"]
[Round "9"]
[TimeControl "180+1"]
[Date "2023.10.31"]
[WhiteClock "0:00:43"]
[BlackClock "0:00:00"]
[Board "79"]

1. Nf3 {[%clk 0:03:00]}  Nc6 {[%clk 0:02:45]} 2. e3 {[%clk 0:03:01]}  e5 {[%clk 0:02:44]} 3. d4 {[%clk 0:03:02]}  exd4 {[%clk 0:02:43]} 4. exd4 {[%clk 0:03:02]}  d5 {[%clk 0:02:42]} 5. Bd3 {[%clk 0:03:02]}  Nf6 {[%clk 0:02:39]} 6. O-O {[%clk 0:03:02]}  Be7 {[%clk 0:02:40]} 7. Bg5 {[%clk 0:02:59]}  O-O {[%clk 0:02:39]} 8. c3 {[%clk 0:02:58]}  Bg4 {[%clk 0:02:36]} 9. Nbd2 {[%clk 0:02:57]}  Re8 {[%clk 0:02:33]} 10. Qc2 {[%clk 0:02:57]}  h6 {[%clk 0:02:31]} 11. Bh4 {[%clk 0:02:57]}  Nh5 {[%clk 0:02:05]} 12. Bxe7 {[%clk 0:02:54]}  Qxe7 {[%clk 0:02:03]} 13. Rae1 {[%clk 0:02:51]}  Qf6 {[%clk 0:01:54]} 14. Qb3 {[%clk 0:02:49]}  Nf4 {[%clk 0:01:51]} 15. Bb5 {[%clk 0:02:46]}  Bh3 {[%clk 0:01:48]} 16. Rxe8+ {[%clk 0:02:26]}  Rxe8 {[%clk 0:01:46]} 17. Re1 {[%clk 0:02:27]}  Rxe1+ {[%clk 0:01:26]} 18. Nxe1 {[%clk 0:02:27]}  Bxg2 {[%clk 0:01:18]} 19. Nxg2 {[%clk 0:02:21]}  Nh3+ {[%clk 0:01:18]} 20. Kh1 {[%clk 0:02:17]}  Nxf2+ {[%clk 0:01:17]} 21. Kg1 {[%clk 0:02:17]}  Nh3+ {[%clk 0:01:15]} 22. Kh1 {[%clk 0:02:18]}  Qg5 {[%clk 0:00:45]} 23. Qc2 {[%clk 0:02:10]}  Ne7 {[%clk 0:00:33]} 24. Nf3 {[%clk 0:02:02]}  Qf6 {[%clk 0:00:27]} 25. Qe2 {[%clk 0:02:00]}  c6 {[%clk 0:00:22]} 26. Bd3 {[%clk 0:01:56]}  g6 {[%clk 0:00:22]} 27. Ne3 {[%clk 0:01:48]}  Nf4 {[%clk 0:00:16]} 28. Ng4 {[%clk 0:01:42]}  Qd6 {[%clk 0:00:03]} 29. Qe5 {[%clk 0:01:12]}  Qxe5 {[%clk 0:00:03]} 30. Nfxe5 {[%clk 0:01:13]}  Nxd3 {[%clk 0:00:03]} 31. Nxd3 {[%clk 0:01:12]}  h5 {[%clk 0:00:03]} 32. Nf6+ {[%clk 0:01:09]}  Kg7 {[%clk 0:00:04]} 33. Ne8+ {[%clk 0:01:09]}  Kh6 {[%clk 0:00:03]} 34. Nd6 {[%clk 0:01:09]}  b6 {[%clk 0:00:04]} 35. Nxf7+ {[%clk 0:01:09]}  Kg7 {[%clk 0:00:03]} 36. Nfe5 {[%clk 0:01:09]}  Kf6 {[%clk 0:00:04]} 37. Kg2 {[%clk 0:01:07]}  Kf5 {[%clk 0:00:04]} 38. Kf3 {[%clk 0:01:07]}  g5 {[%clk 0:00:05]} 39. h3 {[%clk 0:01:04]}  c5 {[%clk 0:00:05]} 40. dxc5 {[%clk 0:00:57]}  bxc5 {[%clk 0:00:06]} 41. Nd7 {[%clk 0:00:57]}  c4 {[%clk 0:00:06]} 42. Nb4 {[%clk 0:00:55]}  g4+ {[%clk 0:00:05]} 43. hxg4+ {[%clk 0:00:55]}  hxg4+ {[%clk 0:00:06]} 44. Kg3 {[%clk 0:00:55]}  Ke4 {[%clk 0:00:04]} 45. Nf6+ {[%clk 0:00:55]}  Kf5 {[%clk 0:00:03]} 46. Nxg4 {[%clk 0:00:55]}  Ke4 {[%clk 0:00:03]} 47. Nf6+ {[%clk 0:00:54]}  Ke3 {[%clk 0:00:03]} 48. Nfxd5+ {[%clk 0:00:54]}  Nxd5 {[%clk 0:00:03]} 49. Nxd5+ {[%clk 0:00:55]}  Kd2 {[%clk 0:00:03]} 50. Kf3 {[%clk 0:00:44]}  Kc2 {[%clk 0:00:03]} 51. Ke3 {[%clk 0:00:44]}  Kxb2 {[%clk 0:00:03]} 52. a4 {[%clk 0:00:45]}  Kb3 {[%clk 0:00:03]} 53. a5 {[%clk 0:00:42]}  Ka4 {[%clk 0:00:03]} 54. a6 {[%clk 0:00:42]}  Kb5 {[%clk 0:00:03]} 55. Kd4 {[%clk 0:00:43]}  Kxa6 {[%clk 0:00:03]} 56. Kxc4 {[%clk 0:00:43]}  Ka5 {[%clk 0:00:03]} 57. Kc5 {[%clk 0:00:43]}  Ka4 {[%clk 0:00:04]} 58. c4 {[%clk 0:00:43]}  a5 {[%clk 0:00:04]} 59. Nb6+ {[%clk 0:00:43]}  Kb3 {[%clk 0:00:05]} 60. Kd5 {[%clk 0:00:43]}  Kb4 {[%clk 0:00:03]} 61. c5 {[%clk 0:00:43]}  Kb5 {[%clk 0:00:04]} 62. c6 {[%clk 0:00:41]}  Kxb6 {[%clk 0:00:04]} 63. Kd6 {[%clk 0:00:42]}  a4 {[%clk 0:00:05]} 64. c7 {[%clk 0:00:43]}  a3 {[%clk 0:00:06]} 65. c8=Q {[%clk 0:00:43]}  a2 {[%clk 0:00:00]} 66. Qa8 {[%clk 0:00:43]} 1-0


[Site "https://www.chess.com"]